bitfinex/quotes_ETHUSD_20260304
["timestamp","ask_amount","ask_price","bid_price","bid_amount"]
[1772633774738,0.16715826,2077.7,2077.1,4.89373816]
[1772633774943,0.16715826,2077.7,2077.2,3.28973816]
[1772633775338,0.16715826,2077.7,2077.0,1.20365912]
[1772633775542,1.37041303,2077.7,2077.0,1.20365912]
[1772633776660,1.37041303,2077.7,2077.0,3.28973816]
[1772633777269,4.56548603,2077.7,2077.0,3.28973816]
[1772633778230,0.16715826,2077.7,2077.1,3.28973816]
[1772633778567,1.37042991,2077.7,2077.1,3.28973816]
[1772633778762,1.37042991,2077.7,2077.1,4.49329277]
[1772633779374,2.99594681,2077.6,2076.7,1.20479867]
[1772633779541,2.99594681,2077.6,2076.7,0.001]
[1772633779737,2.99594681,2077.6,2076.7,1.20482751]
[1772633779939,2.99594681,2077.6,2076.7,4.33708863]
[1772633780163,2.99594681,2077.6,2076.7,1.20482751]
[1772633780340,2.99594681,2077.6,2076.9,0.14948499]
[1772633780673,4.36637672,2077.7,2076.9,4.73626112]
[1772633780846,4.36637672,2077.7,2076.9,5.93993039]
[1772633781045,4.36637672,2077.7,2077.0,3.13226112]
[1772633781769,1.37042991,2077.7,2077.0,3.13226112]
[1772633781945,0.16715826,2077.7,2077.0,3.13226112]
[1772633782467,1.37043702,2077.7,2077.0,1.604]
[1772633782660,2.99594681,2077.6,2077.0,1.604]
[1772633782856,1.37043702,2077.7,2077.2,3.11944513]
[1772633782857,0.16715826,2077.7,2077.2,3.11944513]
[1772633783476,1.37041189,2077.7,2077.2,3.11944513]
[1772633783766,1.37041189,2077.7,2076.8,4.81505769]
[1772633783767,2.98975162,2077.6,2076.8,3.11944513]
[1772633783952,2.98975162,2077.6,2076.8,5.92722016]
[1772633785054,4.19312105,2077.5,2076.8,4.32322016]
[1772633785668,2.98975162,2077.4,2076.7,0.001]
[1772633787280,1.20348529,2077.3,2076.7,0.001]
[1772633788546,2.98975162,2077.2,2076.7,0.001]
[1772633789047,2.98975162,2077.0,2076.5,0.001]
[1772633789866,1.20360117,2077.1,2076.5,0.001]
[1772633790070,1.20360117,2077.1,2076.5,3.12044513]
[1772633790668,1.20360117,2077.1,2076.5,0.001]
[1772633790669,2.98975162,2077.0,2076.5,0.001]
[1772633791286,2.98975162,2076.8,2076.5,0.001]
[1772633791791,1.20371707,2076.9,2076.5,0.001]
[1772633792158,4.19345814,2077.0,2076.5,0.001]
[1772633792361,4.81459761,2077.1,2076.5,0.001]
[1772633792362,7.80405291,2077.2,2076.5,3.12044513]
[1772633792557,1.20354323,2077.2,2076.5,3.12044513]
[1772633792767,1.20352146,2077.3,2076.6,3.11944513]
[1772633793388,2.98975162,2077.4,2076.7,4.32327813]
[1772633793389,4.19321919,2077.4,2076.7,4.32327813]
[1772633793754,4.81560583,2077.5,2076.8,3.11944513]
[1772633793755,0.002,2077.5,2076.8,3.11944513]
[1772633793983,4.19512514,2077.5,2076.7,4.32327813]
[1772633794562,0.002,2077.5,2076.8,3.26893012]
[1772633794757,1.2053711,2077.5,2076.8,3.26893012]
[1772633795153,0.002,2077.5,2076.8,3.26893012]
[1772633795373,0.002,2077.5,2076.9,4.3231622]
[1772633796266,2.99175162,2077.5,2076.8,1.604]
[1772633796689,2.99175162,2077.5,2076.6,4.32329453]
[1772633796860,2.99175162,2077.5,2076.5,2.80893954]
[1772633797361,2.99175162,2077.5,2076.7,1.203833]
[1772633797362,1.20342736,2077.4,2076.7,1.203833]
[1772633797676,2.98975162,2077.3,2076.7,1.203833]
[1772633797871,1.20342736,2077.4,2076.8,3.11944513]
[1772633798091,4.19317898,2077.4,2076.7,1.203833]
[1772633798290,4.19317898,2077.4,2076.5,5.92834652]
[1772633798291,2.98975162,2077.3,2076.5,5.92834652]
[1772633799060,1.2053788,2077.5,2076.6,3.11574519]
[1772633799599,0.002,2077.5,2076.8,3.10719128]
[1772633800358,0.16715826,2077.7,2077.0,3.09666023]
[1772633800557,2.98975162,2078.1,2076.9,0.14948499]
[1772633800558,2.98975162,2078.1,2077.2,3.09666023]
[1772633800786,4.19278578,2078.1,2077.2,3.09666023]
[1772633801564,4.19278578,2078.1,2077.3,4.29157751]
[1772633801777,1.20303416,2078.1,2077.4,3.08809222]
[1772633802068,4.19278578,2078.1,2077.4,3.08809222]
[1772633802266,0.002,2077.5,2077.4,3.08809222]
[1772633802475,2.98975162,2078.3,2077.4,3.08809222]
[1772633803282,2.98975162,2078.3,2077.5,3.07933085]
[1772633803674,2.98975162,2078.3,2077.3,1.20348529]
[1772633803675,2.98975162,2078.1,2077.2,7.89327202]
[1772633804307,2.98975162,2078.1,2077.2,3.07933085]
[1772633804508,2.98975162,2078.1,2077.1,5.87733234]
[1772633804709,2.98975162,2078.1,2077.2,3.07077043]
[1772633804874,4.19269863,2078.3,2077.4,3.07077043]
[1772633805568,4.19269863,2078.3,2077.5,4.26558619]
[1772633805970,4.19269863,2078.3,2077.6,3.06221676]
[1772633806368,1.20294701,2078.3,2077.6,3.06221676]
[1772633807104,7.80122822,2078.4,2077.6,3.05368497]
[1772633807105,4.81139707,2078.4,2077.6,3.05368497]
[1772633807308,7.80114869,2078.4,2077.6,3.05368497]
[1772633807610,4.81123757,2078.5,2077.7,1.20325359]
[1772633807913,4.81123757,2078.5,2077.8,3.04518017]
[1772633808765,7.76653908,2078.5,2077.8,3.04518017]
[1772633808965,2.95530151,2078.4,2077.7,2.80625359]
[1772633809213,1.20277281,2078.6,2077.8,2.9377411]
[1772633809910,7.766088,2078.7,2077.9,4.14087888]
[1772633809911,1.20271213,2078.7,2077.9,4.14087888]
[1772633810089,1.20265665,2078.8,2078.0,2.9377411]
[1772633810294,7.0986232,2079.3,2078.2,2.9377411]
[1772633810295,1.20243703,2079.2,2078.2,2.9377411]
[1772633810474,2.95530151,2079.6,2078.7,2.9377411]
[1772633810800,1.52465125,2079.7,2078.7,2.9377411]
[1772633810801,1.20210117,2079.7,2078.7,2.9377411]
[1772633811100,2.95530151,2079.6,2078.7,2.9377411]
[1772633811270,1.36348514,2079.8,2078.7,2.9377411]
[1772633811467,3.10061833,2079.6,2078.4,4.61500205]
[1772633811681,3.10061833,2079.6,2078.5,3.01300205]
[1772633811907,4.3028304,2079.5,2078.6,4.21573465]
[1772633812268,3.10061833,2079.6,2078.7,4.60657699]
[1772633812515,3.10061833,2079.6,2078.8,3.00457699]
[1772633812723,1.20209645,2079.7,2078.8,3.00457699]
[1772633812913,1.3634855,2079.8,2078.8,3.00457699]
[1772633813211,1.3634855,2079.8,2078.7,1.602]
[1772633813212,0.1614464,2079.8,2079.2,2.99619975]
[1772633813812,7.94791788,2080.2,2079.3,4.03708105]
[1772633813813,4.34246773,2080.2,2079.3,4.03708105]
[1772633814031,4.34246773,2080.2,2079.4,1.602]
[1772633814255,4.80605089,2080.8,2079.4,1.602]
[1772633814256,1.2015295,2080.7,2079.5,2.97600779]
[1772633814402,1.2015295,2080.7,2079.2,4.80931082]
[1772633814403,3.10061833,2080.6,2079.2,2.8265228]
[1772633814601,3.10061833,2080.6,2079.0,1.601]
[1772633814836,3.10061833,2080.6,2078.8,2.8265228]
[1772633815037,3.10061833,2080.6,2078.7,0.14948499]
[1772633815038,3.10061833,2080.6,2079.1,2.8265228]
[1772633815351,3.10061833,2080.6,2079.1,4.4251374]
[1772633815715,3.10061833,2080.6,2079.2,2.8241374]
[1772633815918,0.002,2079.9,2079.1,2.80338935]
[1772633816159,7.90660749,2080.7,2079.1,2.80338935]
[1772633816160,3.10061833,2080.9,2079.6,2.8241374]
[1772633816432,6.9101869,2081.1,2079.8,2.81592788]
[1772633816652,0.002,2080.1,2079.9,4.41592788]
[1772633816939,3.10061833,2080.8,2079.9,4.41592788]
[1772633817129,3.10061833,2080.8,2079.9,2.81592788]
[1772633817332,6.9101869,2081.1,2079.9,2.81592788]
[1772633817504,0.48625361,2081.4,2080.1,2.79967267]
[1772633817505,3.10061833,2081.0,2080.1,2.79967267]
[1772633817929,3.10061833,2081.0,2080.2,1.20180751]
[1772633818338,3.00285038,2080.9,2079.9,1.20198086]
[1772633818540,3.00285038,2080.9,2079.7,1.6]
[1772633818838,3.00285038,2080.9,2079.7,2.80205261]
[1772633819813,3.00285038,2080.8,2079.7,5.59361872]
[1772633820206,3.00285038,2080.8,2079.8,2.78346966]
[1772633820411,3.00285038,2081.0,2079.8,2.78346966]
[1772633821003,3.00285038,2080.9,2079.7,1.20205261]
[1772633821414,3.00285038,2080.9,2079.8,2.77536556]
[1772633821825,3.00285038,2080.9,2079.9,1.20198086]
[1772633822062,3.00285038,2080.9,2080.0,2.77536556]
[1772633822244,3.00285038,2080.8,2080.1,1.2]
[1772633824013,3.00285038,2080.8,2080.2,1.20180751]
[1772633824214,7.43254551,2081.5,2080.2,1.20180751]
[1772633824215,0.26568879,2081.7,2080.2,1.20180751]
[1772633824440,4.80307907,2082.0,2080.2,2.73979212]
[1772633824441,3.70896973,2081.4,2080.2,2.73979212]
[1772633824812,7.00953357,2081.7,2080.3,3.24406882]
[1772633824813,3.00285038,2081.7,2080.3,3.24406882]
[1772633825019,2.62786826,2082.1,2080.3,3.24406882]
[1772633825020,1.20085853,2081.9,2080.3,3.24406882]
[1772633825443,7.80605499,2082.0,2080.3,3.24406882]
[1772633825444,1.20079692,2082.0,2080.3,3.24406882]
[1772633826042,4.80288412,2082.1,2080.5,3.24406882]
[1772633826043,3.00285038,2082.1,2080.5,3.24406882]
[1772633826215,4.80307396,2082.2,2080.7,3.09458383]
[1772633826216,4.30807396,2082.2,2080.7,3.09458383]
[1772633826422,3.00285038,2082.1,2080.8,4.69458383]
[1772633826816,3.00285038,2082.1,2080.9,3.09458383]
[1772633827133,1.20065315,2082.2,2081.0,3.09458383]
[1772633827325,3.00285038,2082.1,2081.0,3.09458383]
[1772633828140,4.20360562,2082.1,2081.1,1.20128778]
[1772633828449,3.00285038,2082.1,2081.1,1.20128778]
[1772633828657,4.80229613,2082.4,2081.2,3.09458383]
[1772633828843,3.00285038,2082.5,2081.4,3.09458383]
[1772633828844,4.20333321,2082.5,2081.4,3.09458383]
[1772633829147,4.20334267,2082.5,2081.4,3.09458383]
[1772633829319,4.20334267,2082.5,2081.1,1.20128778]
[1772633829320,3.00285038,2082.4,2081.2,3.09458383]
[1772633829518,3.00285038,2082.4,2081.4,3.09458383]
[1772633829726,1.20045341,2082.6,2081.4,3.09458383]
[1772633829933,8.34556032,2082.7,2081.4,3.09458383]
[1772633829934,4.74433102,2082.7,2081.6,3.09458383]
[1772633830521,0.541099,2082.7,2081.6,3.09458383]
[1772633831038,0.002,2082.3,2081.6,3.09458383]
[1772633832135,0.002,2082.3,2081.7,1.20094153]
[1772633832528,3.00485038,2082.3,2081.7,1.20094153]
[1772633832736,3.00485038,2082.3,2081.4,4.80441315]
[1772633832737,3.00485038,2082.3,2081.4,4.80437095]
[1772633834135,1.20065315,2082.2,2081.2,4.80473593]
[1772633834331,3.00285038,2082.2,2081.2,4.80473593]
[1772633834533,5.3425644,2082.7,2081.2,4.80473593]
[1772633834534,5.3425644,2082.7,2081.5,3.09458383]
[1772633834535,0.541099,2082.7,2081.5,3.09458383]
[1772633834764,0.541099,2082.7,2081.7,3.09458383]
[1772633835667,0.003,2082.4,2081.7,3.09458383]
[1772633836360,0.541099,2082.7,2081.8,4.29546768]
[1772633836659,4.20307885,2083.0,2081.9,3.09458383]
[1772633836660,3.00285038,2083.0,2081.9,3.09458383]
[1772633836854,4.20304797,2083.0,2081.9,3.09458383]
[1772633837044,4.20304466,2083.0,2081.9,3.09458383]
[1772633837243,3.00285038,2083.0,2081.9,3.09458383]
[1772633837449,3.00285038,2083.4,2081.9,3.09458383]
[1772633838363,3.00285038,2083.4,2082.0,1.20076849]
[1772633838364,2.89808895,2083.2,2082.0,1.20076849]
[1772633839460,2.89808895,2083.2,2082.0,4.27032643]
[1772633839969,2.89808895,2083.2,2082.1,3.06955794]
[1772633840455,2.89808895,2083.0,2081.9,4.80307396]
[1772633842347,2.89808895,2083.0,2081.5,0.40790629]
[1772633842348,2.89808895,2082.6,2081.5,0.40790629]
[1772633842564,2.89808895,2082.6,2081.2,1.20118768]
[1772633842766,2.89808895,2082.1,2080.8,2.80342881]
[1772633843429,2.89808895,2082.1,2080.5,0.001]
[1772633843630,2.92579429,2081.5,2080.5,0.001]
[1772633844468,2.92579429,2081.3,2080.5,0.001]
[1772633844873,2.92579429,2081.1,2080.5,0.001]
[1772633845088,2.92579429,2081.1,2079.6,3.54669989]
[1772633845089,2.92579429,2080.6,2079.6,3.54669989]
[1772633845247,2.92579429,2080.6,2079.6,2.3445486]
[1772633845852,2.92579429,2080.6,2079.1,4.08294973]
[1772633846273,2.92579429,2080.6,2079.0,4.80993146]
[1772633846274,2.20507504,2080.5,2079.0,1.2024766]
[1772633846477,2.20507504,2080.5,2078.8,1.20261689]
[1772633846478,2.92579429,2080.1,2078.8,1.20261689]
[1772633847699,2.92579429,2080.1,2078.7,7.69101569]
[1772633847700,2.92579429,2080.1,2078.7,4.08319607]
[1772633847988,2.92579429,2079.5,2078.0,1.20307988]
[1772633848456,2.92579429,2079.3,2078.0,1.20307988]
[1772633848777,2.92579429,2079.2,2078.0,1.20307988]
[1772633848944,2.92579429,2079.2,2077.9,1.20310017]
[1772633849692,2.92579429,2079.2,2077.8,5.13620575]
[1772633849693,2.92579429,2078.9,2077.8,0.32349945]
[1772633849848,2.92579429,2078.6,2077.8,0.32349945]
[1772633850048,2.92579429,2078.6,2077.7,0.001]
[1772633850473,2.92579429,2078.6,2077.5,0.001]
[1772633850474,2.92579429,2078.4,2077.5,0.001]
[1772633850673,2.92579429,2078.3,2077.5,0.001]
[1772633851618,2.92579429,2077.8,2077.2,0.001]
[1772633851920,2.92579429,2077.8,2076.7,1.20479185]
[1772633851921,2.92579429,2077.7,2076.7,0.001]
[1772633852127,2.92579429,2077.1,2075.9,1.2042611]
[1772633852286,2.92579429,2077.1,2075.9,1.20429438]
[1772633852630,2.92579429,2076.9,2075.5,4.81908943]
[1772633852822,2.92579429,2076.9,2075.5,0.001]
[1772633853041,2.92579429,2076.6,2075.5,0.001]
[1772633853319,0.065536,2076.8,2075.5,0.001]
[1772633853320,2.92579429,2076.3,2075.5,0.001]
[1772633854017,2.92579429,2076.3,2075.3,0.001]
[1772633854018,2.92579429,2075.6,2075.3,0.001]
[1772633854184,2.92579429,2075.6,2075.0,0.001]
[1772633854389,1.20452902,2075.5,2074.3,0.001]
[1772633854623,2.92579429,2076.0,2074.4,2.88054812]
[1772633854823,2.92579429,2075.9,2074.4,2.88054812]
[1772633855053,2.92579429,2075.9,2074.3,0.001]
[1772633855182,2.92579429,2075.6,2074.3,0.001]
[1772633856214,2.92579429,2075.4,2074.3,0.001]
[1772633856420,0.065536,2075.5,2074.0,0.65031879]
[1772633856421,2.92579429,2075.1,2074.0,0.65031879]
[1772633856604,2.99133029,2075.1,2074.0,0.65031879]
[1772633857320,1.20470316,2075.2,2074.0,0.64931879]
[1772633857321,2.92579429,2074.9,2074.0,0.64931879]
[1772633857614,2.92579429,2074.9,2073.8,0.001]
[1772633858206,0.065536,2075.0,2073.8,0.001]
[1772633858207,0.065536,2074.8,2073.8,0.001]
[1772633858410,2.92579429,2074.4,2073.8,0.001]
[1772633858717,4.96829763,2075.3,2073.8,0.001]
[1772633858718,2.92579429,2075.0,2073.8,0.001]
[1772633858907,2.92579429,2075.4,2073.8,2.88154812]
[1772633859104,0.4818,2075.3,2073.8,2.88154812]
[1772633859322,0.4818,2075.3,2074.0,3.38054812]
[1772633859487,0.4818,2074.8,2074.0,3.38054812]
[1772633859684,2.99133029,2075.3,2074.0,0.5]
[1772633860209,2.99133029,2075.3,2073.8,0.001]
[1772633860390,2.92579429,2075.0,2073.8,0.001]
[1772633860591,2.92579429,2074.8,2073.8,0.001]
[1772633860909,2.92579429,2074.6,2072.8,2.88054812]
[1772633861093,2.92579429,2074.4,2072.9,1.20603984]
[1772633861713,2.92579429,2074.0,2072.6,1.20621441]
[1772633861989,2.92579429,2073.8,2072.6,1.20621441]
[1772633862417,2.92579429,2074.2,2072.7,2.88054812]
[1772633862733,2.92579429,2074.2,2072.4,1.20733082]
[1772633862734,2.92579429,2074.0,2072.4,1.20733082]
[1772633862903,2.99133029,2073.9,2072.4,1.20733082]
[1772633863106,2.92579429,2073.7,2072.4,0.001]
[1772633863429,2.92579429,2073.5,2072.4,0.001]
[1772633863873,1.20534207,2074.1,2072.2,0.001]
[1772633863874,2.92579429,2073.1,2072.2,0.001]
[1772633864522,2.92579429,2072.9,2072.2,0.001]
[1772633865256,4.82324672,2073.3,2072.2,0.001]
[1772633865550,7.74904101,2073.3,2072.2,0.001]
[1772633865726,2.92579429,2073.2,2072.2,0.001]
[1772633866740,2.92579429,2073.0,2072.0,0.001]
[1772633867062,2.92579429,2073.0,2071.3,1.20793333]
[1772633867063,3.29650684,2073.1,2071.3,0.001]
[1772633867064,2.92579429,2072.4,2071.3,0.001]
[1772633867634,2.92579429,2072.2,2071.3,0.001]
[1772633868365,2.99133029,2072.5,2071.3,0.001]
[1772633868553,1.20633082,2072.4,2071.3,0.001]
[1772633868860,2.83849744,2072.3,2071.3,0.001]
[1772633870467,2.83849744,2072.1,2071.3,0.001]
[1772633870665,2.83849744,2071.9,2071.3,0.001]
[1772633871355,6.91617783,2072.3,2071.3,0.001]
[1772633871356,2.83849744,2072.3,2071.3,0.001]
[1772633871554,1.20630368,2072.5,2071.3,0.001]
[1772633872062,1.20624924,2072.6,2071.3,0.001]
[1772633872266,1.20624924,2072.6,2071.3,2.98814959]
[1772633872435,1.20598166,2073.0,2071.3,2.98814959]
[1772633872637,2.83849744,2072.7,2071.4,1.20691319]
[1772633873366,2.83849744,2072.7,2071.3,1.20795818]
[1772633873666,0.065536,2072.5,2071.3,1.20795818]
[1772633873883,2.90403344,2072.5,2071.3,1.20795724]
[1772633874084,1.20609803,2072.8,2071.4,2.98714959]
[1772633874254,7.66288956,2072.9,2071.4,2.98714959]
[1772633874255,4.04457903,2072.9,2071.4,2.98714959]
[1772633874759,4.04457903,2072.9,2071.5,1.20685493]
[1772633874953,4.04457903,2072.9,2071.4,4.19401795]
[1772633874954,2.83849744,2072.8,2071.4,4.19401795]
[1772633875470,2.83849744,2072.8,2071.3,1.2079297]
[1772633876266,2.83849744,2072.8,2071.3,4.19507929]
[1772633876482,2.83849744,2072.8,2071.5,0.001]
[1772633876777,1.20615622,2072.7,2071.5,0.001]
[1772633876963,1.20615622,2072.7,2071.5,2.98814959]
[1772633877484,1.20598166,2073.0,2071.5,2.98814959]
[1772633878277,1.2059654,2073.1,2071.5,2.98814959]
[1772633878483,4.82182619,2074.1,2071.5,2.98814959]
[1772633878484,7.66079574,2073.9,2071.7,2.98714959]
[1772633878659,7.66079574,2073.9,2072.1,2.98714959]
[1772633878969,7.66079574,2073.9,2072.3,2.98714959]
[1772633879861,2.83849744,2073.8,2072.3,2.98714959]
[1772633880265,2.83849744,2073.8,2072.0,1.2065637]
[1772633880266,2.83849744,2073.5,2072.0,1.2065637]
[1772633880905,1.20574901,2073.4,2072.1,2.98714959]
[1772633881081,1.20574901,2073.4,2072.3,2.98714959]
[1772633881862,1.20573578,2073.5,2072.3,2.98714959]
[1772633882386,1.20534207,2074.1,2072.5,2.98714959]
[1772633882768,4.8213683,2074.3,2072.7,2.98714959]
[1772633882977,7.65986574,2074.3,2072.7,2.98714959]
[1772633883285,2.83849744,2074.2,2072.7,2.98714959]
[1772633883786,4.8213683,2074.3,2072.7,2.98714959]
[1772633884378,2.83849744,2074.2,2072.7,2.98714959]
[1772633884765,2.83849744,2074.0,2072.7,4.19329679]
[1772633885117,0.065536,2073.9,2072.7,4.19329588]
[1772633885398,0.065536,2073.9,2072.7,2.98714959]
[1772633885592,2.90403344,2073.9,2072.6,1.20619955]
[1772633885759,2.90403344,2073.9,2072.5,4.82506146]
[1772633885760,2.90403344,2073.9,2072.5,1.20623985]
[1772633886496,2.90403344,2073.9,2072.3,2.98714959]
[1772633886700,2.90403344,2073.9,2072.3,4.19352163]
[1772633887008,4.04401388,2073.8,2072.4,2.98714959]
[1772633887194,2.83849744,2073.7,2072.4,2.98714959]
[1772633887501,2.83849744,2073.7,2072.0,4.19367176]
[1772633887794,2.83849744,2073.5,2071.7,1.20673842]
[1772633888097,2.83849744,2073.1,2071.7,2.98714959]
[1772633888944,1.20580716,2073.3,2071.9,2.98714959]
[1772633889244,3.9153826,2073.3,2071.9,2.98714959]
[1772633889447,2.83849744,2073.2,2071.9,2.98714959]
[1772633890016,2.83849744,2073.2,2071.7,1.20769761]
[1772633890017,2.83849744,2073.2,2071.7,1.2077302]
[1772633890451,2.83849744,2073.2,2071.7,0.001]
[1772633890662,2.83849744,2073.0,2071.7,0.001]
[1772633890952,1.20615622,2072.7,2071.7,0.001]
[1772633891627,2.83849744,2072.4,2071.7,0.001]
[1772633891838,2.83849744,2072.4,2071.3,0.001]
[1772633892251,2.83849744,2072.4,2071.0,1.20711834]
[1772633892252,0.065536,2072.1,2071.0,1.20711834]
[1772633893085,2.83849744,2071.7,2070.3,4.19468069]
[1772633893224,2.83849744,2071.7,2070.1,1.20763297]
[1772633893225,0.065536,2071.6,2070.1,1.20763297]
[1772633893564,2.83849744,2071.5,2070.0,3.89815981]
[1772633893725,2.26720059,2071.5,2069.9,2.98714959]
[1772633893928,3.36624145,2071.7,2070.0,2.98714959]
[1772633893929,2.83849744,2071.4,2070.0,2.98714959]
[1772633894660,2.83849744,2071.4,2069.3,2.23905954]
[1772633894661,2.83849744,2071.2,2069.6,4.19506712]
[1772633894860,2.83849744,2071.2,2069.6,4.19510649]
[1772633895062,2.83849744,2071.0,2069.6,4.19510649]
[1772633896229,1.20708802,2071.1,2069.7,2.98714959]
[1772633896767,1.44843878,2071.6,2069.7,2.98714959]
[1772633896768,4.82713754,2071.7,2069.7,2.98714959]
[1772633896969,1.20673842,2071.7,2070.1,2.98714959]
[1772633897252,4.04523586,2071.7,2070.1,2.98714959]
[1772633897653,2.90403344,2071.5,2070.1,2.98714959]
[1772633897867,2.83849744,2071.5,2070.1,2.98714959]
[1772633898224,1.20673842,2071.7,2070.2,2.89777849]
[1772633898451,2.70401695,2071.6,2070.1,2.61373583]
[1772633898654,2.70401695,2071.2,2069.8,2.89777849]
[1772633898863,2.70401695,2071.2,2069.8,4.10562347]
[1772633899051,1.20708802,2071.1,2069.8,4.10562347]
[1772633899626,1.20708802,2071.1,2069.9,2.89777849]
[1772633900062,1.20706312,2071.2,2069.9,2.89777849]
[1772633900360,1.20706312,2071.2,2069.9,2.39827849]
[1772633900560,1.20685493,2071.5,2069.9,2.39827849]
[1772633901071,1.20662194,2071.9,2070.1,2.89777849]
[1772633901241,1.20660727,2072.0,2070.3,2.89777849]
[1772633901438,1.20660727,2072.0,2070.5,2.89777849]
[1772633902036,2.70401695,2072.9,2070.7,2.89777849]
[1772633902445,2.70401695,2072.6,2070.7,2.89777849]
[1772633902739,2.93338698,2072.7,2070.3,2.89777849]
[1772633902740,2.76955295,2072.2,2070.3,2.89777849]
[1772633903164,0.002,2071.0,2070.4,1.20749613]
[1772633903334,2.89723696,2072.0,2070.5,2.90679109]
[1772633903937,0.002,2071.2,2070.5,2.90679109]
[1772633905235,0.002,2071.5,2070.7,2.90679109]
[1772633905872,1.20643057,2072.3,2070.8,2.90679109]
[1772633906166,1.20615622,2072.7,2070.8,2.90679109]
[1772633906483,1.20615622,2072.7,2071.0,2.90679109]
[1772633906664,1.20598166,2073.0,2071.2,2.90679109]
[1772633907158,4.82391956,2073.1,2071.4,2.90679109]
[1772633907988,4.82391956,2073.1,2071.6,2.90679109]
[1772633909084,7.65562052,2073.1,2071.7,1.20673842]
[1772633909383,2.83170096,2072.8,2071.6,1.20675577]
[1772633909886,4.82391956,2073.1,2071.7,2.90679109]
[1772633910091,1.20592349,2073.1,2071.7,2.90679109]
[1772633911289,1.20592349,2073.1,2071.8,4.11347127]
[1772633912088,1.20592349,2073.1,2071.9,2.90679109]
[1772633913878,7.65539494,2073.4,2072.0,1.2065637]
[1772633914193,2.83170096,2073.3,2072.0,1.2065637]
[1772633915595,2.83170096,2073.3,2071.9,4.11337208]
[1772633915792,2.83170096,2073.3,2071.9,1.20658099]
[1772633915995,2.83170096,2073.1,2071.6,7.73327885]
[1772633916502,2.83170096,2073.1,2071.7,2.90679109]
[1772633917161,2.83170096,2073.1,2071.7,2.90779109]
[1772633917468,2.83370096,2073.1,2071.7,2.90779109]
[1772633917983,1.20598166,2073.0,2071.9,2.90679109]
[1772633918388,0.002,2073.1,2071.9,2.90679109]
[1772633918575,4.82535738,2073.3,2071.8,1.20668018]
[1772633918576,0.002,2073.3,2072.1,2.5108693]
[1772633918912,0.002,2073.3,2072.2,2.90679109]
[1772633919963,0.002,2073.3,2072.4,2.90679109]
[1772633920306,0.002,2073.6,2072.4,3.12181208]
[1772633920458,0.002,2073.6,2072.7,2.90679109]
[1772633920664,0.002,2073.9,2073.0,2.90679109]
[1772633921499,1.20746999,2073.9,2073.0,2.90679109]
[1772633922008,0.002,2073.9,2073.1,1.20592349]
[1772633922233,0.002,2073.9,2073.1,4.11271458]
[1772633922716,0.002,2073.9,2073.2,2.90679109]
[1772633923321,0.002,2074.2,2073.2,2.90679109]
[1772633923815,1.20476121,2075.1,2073.4,2.90679109]
[1772633924092,1.20476121,2075.1,2073.6,2.90679109]
[1772633924715,4.81813433,2075.5,2073.8,2.90679109]
[1772633926087,4.81813433,2075.5,2073.9,1.20545831]
[1772633926447,4.81813433,2075.5,2074.2,2.90679109]
[1772633926765,1.20452902,2075.5,2074.2,2.90679109]
[1772633927488,4.03622998,2075.5,2074.2,2.90679109]
[1772633927678,4.03622998,2075.5,2074.1,2.5108693]
[1772633927679,2.83170096,2075.4,2074.1,5.41766039]
[1772633928070,4.8179782,2075.6,2074.3,4.11201694]
[1772633928703,4.8179782,2075.6,2074.4,2.71748895]
[1772633928921,2.71246442,2076.2,2074.4,2.71748895]
[1772633929077,3.91658733,2076.2,2074.4,2.71748895]
[1772633929277,4.81572273,2076.7,2075.0,2.71748895]
[1772633929278,3.91641042,2076.6,2075.0,2.71748895]
[1772633929598,1.203946,2076.6,2075.0,2.71748895]
[1772633930086,1.203946,2076.6,2075.2,2.71748895]
[1772633930302,2.71246442,2076.6,2074.9,2.71748895]
[1772633930505,2.71246442,2076.2,2074.5,2.71748895]
[1772633930815,0.065536,2076.3,2074.5,2.71748895]
[1772633930816,2.71246442,2076.0,2074.5,2.71748895]
[1772633930989,2.71246442,2075.8,2074.3,0.49222259]
[1772633931190,2.71246442,2075.8,2074.3,1.69744345]
[1772633931711,2.71246442,2075.8,2074.3,0.49222259]
[1772633932312,2.71246442,2075.8,2074.3,1.69744824]
[1772633932313,2.71246442,2075.6,2074.3,1.69744824]
[1772633934606,2.71246442,2075.4,2074.3,0.49222259]
[1772633934913,2.71246442,2075.4,2073.8,1.20547952]
[1772633935611,2.71246442,2075.4,2073.9,2.71748895]
[1772633935810,2.71246442,2075.4,2073.8,1.20547952]
[1772633936016,2.71246442,2075.2,2073.8,1.20547952]
[1772633936587,2.71246442,2075.0,2073.6,3.92312166]
[1772633937113,2.71246442,2075.0,2073.7,2.71748895]
[1772633938950,2.71246442,2074.8,2073.4,2.71748895]
[1772633939143,2.71246442,2074.8,2073.1,3.92341244]
[1772633940009,2.71246442,2074.8,2073.2,2.71748895]
[1772633940395,1.20487734,2074.9,2073.2,2.71748895]
[1772633940914,2.71246442,2075.0,2073.4,2.71748895]
[1772633941128,1.20464511,2075.3,2073.6,2.71748895]
[1772633941466,1.20464511,2075.3,2073.8,2.71748895]
[1772633941733,1.20464511,2075.3,2073.5,0.21502099]
[1772633941734,1.20441296,2075.7,2074.2,2.71748895]
[1772633943196,4.81765187,2076.0,2074.4,2.71748895]
[1772633943197,1.20423892,2076.0,2074.4,2.71748895]
[1772633944030,4.81825523,2076.4,2074.8,2.71748895]
[1772633944031,1.20406492,2076.3,2074.8,2.71748895]
[1772633944802,1.20406492,2076.3,2074.3,3.44428539]
[1772633944803,2.71246442,2076.2,2074.4,2.71748895]
[1772633945198,2.71246442,2076.0,2074.5,1.20510966]
[1772633945431,0.002,2075.6,2074.5,1.20510966]
[1772633945611,0.002,2075.6,2074.4,3.92264562]
[1772633945933,0.002,2075.6,2074.2,0.001]
[1772633945934,2.71246442,2075.5,2074.2,0.001]
[1772633946095,2.71246442,2075.5,2074.2,1.20628243]
[1772633946297,2.09357899,2075.6,2074.2,1.20628243]
[1772633946298,2.71246442,2075.3,2074.2,0.001]
[1772633947122,1.20470316,2075.2,2074.2,0.001]
[1772633948330,2.71246442,2075.1,2074.2,0.001]
[1772633949321,1.20481927,2075.0,2074.2,0.001]
[1772633950148,3.91728369,2075.0,2074.2,0.001]
[1772633950337,2.71246442,2074.9,2074.2,0.001]
[1772633950815,2.71246442,2074.9,2074.0,0.001]
[1772633951220,3.91763217,2074.4,2074.0,0.001]
[1772633951951,3.91763217,2074.4,2073.7,0.001]
[1772633952161,2.71246442,2074.3,2073.7,0.001]
[1772633952665,1.20516775,2074.4,2073.7,0.001]
[1772633952960,2.71246442,2074.3,2073.0,2.5108693]
[1772633953252,3.91774838,2074.2,2072.7,3.92360948]
[1772633953615,1.20528396,2074.2,2072.8,2.71748895]